Cogmind - Beta 16.1 @@@ ROGUE MODE // 2026.04.07 @ 17:26:41 Player: the Result: Destroyed by Hotshot with Improved Heavy Laser Performance ------------- Evolutions (7) 3500 Regions Visited (29) 5800 Robots Destroyed (175) 875 Value Destroyed (4370) 4370 Prototype IDs (57) 1140 Alien Tech Used (2) 400 Bonus (4058) 4058 TOTAL SCORE: 20143 Bonus ------- High Alert Combat Kills 24 Follower Combat Kills 2061 Hunted by Unchained 500 Network Hubs Disabled 200 Registered with UFD 300 Met Optimus in HQ 500 Met Data Miner 300 Met Zhirov 300 Built Enhanced Grunts 300 Met R17 at Cetus 500 Friendly Fire -927 Cogmind --------- Core Integrity 0/1300 Matter 95/300 Energy 100/100 System Corruption 8% Temperature Cool (36) Movement Core (50) Location -3/Protoforge Parts ------- > --- POWER (3) -------- (None) > --- PROPULSION (6) --- (None) > --- UTILITY (8) ------ Improved Hacking Suite > --- WEAPON (4) ------- (None) > --- INVENTORY (5) ---- High-capacity Storage Unit Advanced Hacking Suite A0-MCA's Component Scanner Peak State ------------ > --- POWER ------------ Compact Particle Reactor Quantum Reactor > --- PROPULSION ------- Centrium Heavy Treads Centrium Heavy Treads Armored Huge Wheel > --- UTILITY ---------- Advanced Heat Sink Improved Sensor Array Advanced Signal Interpreter Centrium Medium Armor Plating Centrium Medium Armor Plating Medium Regenerative Plating Improved Hacking Suite > --- WEAPON ----------- Advanced KE Penetrator Advanced KE Penetrator > --- INVENTORY -------- Quantum Reactor Centrium Heavy Treads Authchip [Propulsion] A0-MCA's Component Scanner [Rating: 125] Favorites ----------- Power Light Deuterium Engine Engine Light Deuterium Engine Power Core Light Fission Core Reactor Quantum Reactor Propulsion Light Treads Treads Light Treads Leg Enhanced Flexi-carbon Leg Wheel Armored Wheel Hover Unit Improved Linear Gravjet Flight Unit Improved VTOL Module Utility Hacking Suite Device Improved Sensor Array Storage Huge Storage Unit Processor Improved Signal Interpreter Hackware Hacking Suite Protection Centrium Medium Armor Plating Weapon Heavy Particle Cannon Energy Gun Medium Laser Energy Cannon Heavy Particle Cannon Ballistic Gun Heavy Assault Rifle Ballistic Cannon Bore Cannon Launcher Heavy Missile Launcher Special Weapon Junk Cannon Impact Weapon Maul Slashing Weapon Katana Piercing Weapon Heavy Pick Special Melee Weapon Improved Datajack Build | -11 -10 -10 -9 -8 -8 -8 -8 -6 -6 -6 -6 -6 -6 -5 -5 -5 -5 -5 -5 -5 -5 -4 -4 -4 -4 -3 -3 -3 -3 ------- Run | Yrd Mat Min Mat Mat Sto Rec Scr Fac Was Fac Low Low Dat Pro Fac Was Fac Ext Cet Arc Hub Fac Upp Upp Zhi Pro Res Qua Frg Slots Evolved 14 | . . . 2 2 . . . 4 . . . . . . 2 . . . . . . 2 . . . . 2 . . Power 2 | . . . . . . . . 1 . . . . . . . . . . . . . . . . . . 1 . . Propulsion 4 | . . . 1 1 . . . 2 . . . . . . . . . . . . . . . . . . . . . Utility 6 | . . . 1 1 . . . 1 . . . . . . 2 . . . . . . 1 . . . . . . . Weapon 2 | . . . . . . . . . . . . . . . . . . . . . . 1 . . . . 1 . . Parts Attached 193 | 8 5 2 23 23 14 2 16 7 1 . . 2 . . 2 . 11 4 14 3 6 32 1 1 2 5 3 6 . Power 23 | 1 . 1 1 1 1 1 1 2 . . . . . . . . 2 1 4 . . 4 . . . 2 . 1 . Engine 8 | 1 . 1 1 . 1 1 1 1 . . . . . . . . 1 . . . . . . . . . . . . Core 6 | . . . . 1 . . . 1 . . . . . . . . 1 1 1 . . 1 . . . . . . . Reactor 9 | . . . . . . . . . . . . . . . . . . . 3 . . 3 . . . 2 . 1 . Propulsion 56 | 2 1 1 8 9 4 1 6 . 1 . . . . . . . 5 1 2 . 5 7 . . . . 1 2 . Treads 21 | 2 1 1 7 5 3 . . . . . . . . . . . . . 2 . . . . . . . . . . Leg 7 | . . . . . . . . . . . . . . . . . . . . . 5 2 . . . . . . . Wheel 7 | . . . . 4 . . 2 . . . . . . . . . . 1 . . . . . . . . . . . Hover 1 | . . . . . . . . . . . . . . . . . . . . . . . . . . . . 1 . Flight 20 | . . . 1 . 1 1 4 . 1 . . . . . . . 5 . . . . 5 . . . . 1 1 . Utility 50 | 2 3 . 5 3 3 . 3 5 . . . 2 . . 1 . 3 . 6 2 1 8 1 . 2 . . . . Device 20 | 1 2 . 2 . 1 . 1 2 . . . 2 . . . . 1 . 2 . . 5 . . 1 . . . . Storage 7 | 1 1 . 1 1 . . . . . . . . . . . . . . . . 1 1 . . 1 . . . . Processor 3 | . . . . . 1 . . 1 . . . . . . 1 . . . . . . . . . . . . . . Hackware 12 | . . . 1 2 . . 1 1 . . . . . . . . 2 . . 2 . 2 1 . . . . . . Protection 8 | . . . 1 . 1 . 1 1 . . . . . . . . . . 4 . . . . . . . . . . Artifact . | . . . . . . . . . . . . . . . . . . . . . . . . . . . . . . Weapon 64 | 3 1 . 9 10 6 . 6 . . . . . . . 1 . 1 2 2 1 . 13 . 1 . 3 2 3 . Energy Gun 14 | 2 . . 2 . 2 . 2 . . . . . . . . . . . . . . 6 . . . . . . . Energy Cannon 7 | . . . . 2 2 . . . . . . . . . . . . . . . . 2 . . . 1 . . . Ballistic Gun 18 | 1 . . 7 4 . . 2 . . . . . . . . . . . 2 1 . 1 . . . . . . . Ballistic Cannon 8 | . . . . 1 . . . . . . . . . . . . . 2 . . . 2 . . . . . 3 . Launcher 6 | . 1 . . 2 . . 1 . . . . . . . 1 . . . . . . . . . . . 1 . . Special Weapon 2 | . . . . . 1 . 1 . . . . . . . . . . . . . . . . . . . . . . Impact Weapon 1 | . . . . . . . . . . . . . . . . . . . . . . 1 . . . . . . . Slashing Weapon 3 | . . . . 1 . . . . . . . . . . . . . . . . . . . . . 2 . . . Piercing Weapon 4 | . . . . . . . . . . . . . . . . . 1 . . . . 1 . 1 . . 1 . . Special Melee Weapon 1 | . . . . . 1 . . . . . . . . . . . . . . . . . . . . . . . . Unidentified Prototypes 25 | . . . 3 1 3 . 1 . 1 . . . . . . . 2 . 6 . . 3 . . 3 . . 2 . Corrupted Parts 5 | . . . . . . . 1 . . . . . . . 1 . . . 3 . . . . . . . . . . System Corruption 29 | . . . . . . . 3 . . . . . . . 10 . . . 16 . . . . . . . . . . Parts Lost 51 | . 2 1 1 5 . . . . . . . . . . . . 7 7 2 . . 9 . . . . 5 5 7 Power 7 | . . . . . . . . . . . . . . . . . 1 2 1 . . 2 . . . . 1 . . Propulsion 13 | . 1 . . 1 . . . . . . . . . . . . 1 3 . . . 2 . . . . 1 2 2 Utility 19 | . 1 . 1 1 . . . . . . . . . . . . 3 2 1 . . 3 . . . . 1 2 4 Weapon 12 | . . 1 . 3 . . . . . . . . . . . . 2 . . . . 2 . . . . 2 1 1 Highest Loss Streak 7 | . 2 1 1 1 . . . . . . . . . . . . 4 3 2 . . 4 . . . . 4 4 7 To Critical Strikes 1 | . . . . . . . . . . . . . . . . . . . 1 . . . . . . . . . . Average Backups 13 | 2 10 14 16 20 24 25 20 5 4 4 5 5 5 5 3 4 4 3 3 4 4 7 2 2 3 5 5 4 3 Power . | . 1 1 . . 1 1 . . . . . . . . . . . . . . . 1 . . . . 1 . . Propulsion 3 | . 5 7 5 8 6 5 3 . . . . . . . . . . . . 1 1 1 . . . . . . . Utility 5 | . 1 3 5 4 7 9 9 4 4 4 4 4 4 4 3 3 2 2 2 2 3 4 2 2 2 3 3 3 3 Weapon 3 | 1 2 2 4 4 7 8 6 . . . 1 1 1 1 . 1 . . . . . . . . . . . . . Tool/Special . | . . . . . . . . . . . . . . . . . . . . . . . . . . . . . . Unused Backups 47 | . 1 2 10 4 5 2 2 4 1 . . . . . . . . 4 1 3 . 5 . . . . . . 3 Power 5 | . . . 1 1 . . . . . . . . . . . . . 1 1 1 . . . . . . . . . Propulsion 16 | . 1 2 5 1 3 1 . . . . . . . . . . . 1 . . . 2 . . . . . . . Utility 15 | . . . . . 1 1 1 4 . . . . . . . . . 2 . 2 . 1 . . . . . . 3 Weapon 9 | . . . 4 2 . . 1 . . . . . . . . . . . . . . 2 . . . . . . . Tool/Special 2 | . . . . . 1 . . . 1 . . . . . . . . . . . . . . . . . . . . Average Slot Usage (%) 91 | . 99 97 96 99 100 100 94 92 92 93 93 92 93 93 92 94 88 81 66 82 85 82 71 77 68 82 69 35 20 Engine 6 | . 14 14 11 5 6 9 9 6 6 6 6 6 6 6 5 5 4 . . . . . . . . . . . . Core 1 | . . . . 3 2 . . 5 6 6 6 6 6 6 5 5 4 6 2 . . 2 . . . . . . . Reactor 1 | . . . . . . . . . . . . . . . . . . . 6 11 11 6 5 5 5 8 7 . . Treads 11 | . 27 28 33 32 5 . . . . . . . . . . . . . 3 11 6 . . . . . . . . Wheel 7 | . . . . 2 29 24 20 . . . . . . . . . . . 4 5 3 . . . . . . . . Flight 10 | . . . . . . 11 14 39 39 40 40 40 40 40 35 35 34 29 8 . . 5 15 15 15 15 12 4 . Device 9 | . 14 14 8 8 8 9 6 11 6 12 13 13 13 13 12 11 5 11 11 6 5 7 10 10 9 10 8 . . Storage 6 | . 14 14 11 9 9 9 7 . . . . . . . . . . . . . 1 5 . . . . . . . Processor 4 | . . . . . 8 9 9 6 6 6 6 6 6 6 9 11 11 11 5 5 5 5 5 5 5 5 4 4 2 Hackware 10 | . . . 9 17 9 9 12 13 13 13 13 13 13 13 11 11 12 14 5 9 11 14 24 26 26 26 23 19 13 Protection 1 | . . . . 1 . . . 1 5 . . . . . 3 5 5 . 6 17 14 5 . . . . . . . Energy Gun 1 | . 13 11 . . . . . . . . . . . . . . . . . . . 1 . . . . . . . Energy Cannon 4 | . . . . 2 17 18 8 . . . . . . . . . . . . . . 1 5 9 . 6 2 . . Ballistic Gun 6 | . 14 10 21 14 . . . . . . . . . . . . . . 3 11 11 5 . . . . . . . Peak Build Rating 125 | 7 8 10 19 30 36 38 45 64 67 65 65 65 63 63 71 71 88 86 125 125 124 125 95 101 103 111 113 99 43 Average Rating 44 | 5 7 9 16 24 32 36 35 60 64 64 65 62 63 63 69 71 80 70 80 124 117 106 92 100 90 106 100 47 23 On Entrance 63 | . 7 8 10 18 30 36 38 41 64 65 65 65 63 63 63 71 71 81 49 125 124 112 95 94 101 103 108 82 43 Avg Prop Armor Cover (%) 4 | . . . . 9 2 1 3 . . . . . . . . . 1 . 9 14 13 . . . . . . . . Naked Turns . | . . . . . . . . . . . . . . . . . . . . . . . . . . . . . . Heaviest Build 103 | 15 31 31 60 98 103 101 99 30 29 31 28 29 28 28 30 30 33 29 68 68 79 100 38 38 38 45 46 19 8 Greatest Support 160 | 40 40 40 63 83 60 36 46 30 30 30 30 30 30 30 30 30 37 46 28 28 140 160 45 45 45 45 46 31 10 Greatest Overweight (x) 4 | . . . . 2 2 4 4 . 1 1 . . . . . . . . 3 2 2 . . . . . . 4 2 Average Overweight (x) . | . . . . . 1 2 2 . . . . . . . . . . . 1 2 1 . . . . . . . . Largest Inventory Capacity 25 | 8 15 15 20 25 25 25 25 25 5 5 5 5 5 5 5 5 5 5 5 5 15 15 5 5 5 5 5 5 5 Average Capacity 14 | 7 12 15 17 20 25 25 21 5 5 5 5 5 5 5 5 5 5 5 5 5 8 11 5 5 5 5 5 5 5 Most Carried 25 | 5 15 15 20 25 25 25 25 24 5 5 5 5 5 5 4 4 5 5 5 5 10 15 3 3 5 5 5 5 4 Average Carried 14 | 2 10 14 16 20 24 24 20 5 4 4 5 5 5 5 3 4 4 3 4 4 5 8 2 2 3 4 5 4 3 Final Capacity 25 | 8 15 15 20 25 25 25 25 5 5 5 5 5 5 5 5 5 5 5 5 5 15 5 5 5 5 5 5 5 5 Final Carried 25 | 5 15 14 20 25 25 25 25 5 5 5 5 5 5 5 4 4 2 5 5 5 10 2 3 2 5 5 5 4 3 Class Distribution -------------------- 43% | Mutant 27% | Scavenger-Mutant 8% | Hacker-Scout 5% | Hacker-Sprinter 3% | Hacker-Mutant 3% | Wizard-Mutant 3% | Hacker-Ninja Dominant Class ---------------- Mutant | -10/Materials Mutant | -10/Mines Scavenger-Mutant | -9/Materials Scavenger-Mutant | -8/Materials Mutant | -8/Storage Mutant | -8/Recycling Mutant | -8/Scraptown Hacker-Sprinter | -6/Factory Hacker-Sprinter | -6/Waste Hacker-Scout | -6/Factory Hacker-Scout | -6/Lower Caves Hacker-Scout | -6/Lower Caves Hacker-Scout | -6/Data Miner Hacker-Scout | -5/Proximity Caves Hacker-Scout | -5/Factory Hacker-Scout | -5/Waste Hacker-Sprinter | -5/Factory Hacker-Ninja | -5/Extension Commander-Mutant | -5/Cetus Scavenger-Mutant | -5/Archives Scavenger-Mutant | -5/Hub_04(d) Hacker-Mutant | -4/Factory Wizard-Mutant | -4/Upper Caves Wizard-Mutant | -4/Upper Caves Wizard-Mutant | -4/Zhirov Wizard-Mutant | -3/Proximity Caves Wizard-Mutant | -3/Research Hacker-Mutant | -3/Quarantine Hacker-Mutant | -3/Protoforge Resources | -11 -10 -10 -9 -8 -8 -8 -8 -6 -6 -6 -6 -6 -6 -5 -5 -5 -5 -5 -5 -5 -5 -4 -4 -4 -4 -3 -3 -3 -3 ----------- Run | Yrd Mat Min Mat Mat Sto Rec Scr Fac Was Fac Low Low Dat Pro Fac Was Fac Ext Cet Arc Hub Fac Upp Upp Zhi Pro Res Qua Frg Matter Collected 5758 | 291 277 99 721 916 330 20 309 180 30 90 . 30 . . 9 . 248 366 313 227 160 886 53 43 55 90 15 . . Remotely . | . . . . . . . . . . . . . . . . . . . . . . . . . . . . . . Salvage Created 6583 | 153 365 58 957 1146 833 164 . 404 198 140 . . . . 50 . 389 144 80 132 145 962 53 . 108 . 70 . 32 Parts 385 | 15 23 13 71 78 48 4 . 5 1 2 . . . . 9 . 25 6 7 11 8 49 1 . 1 . 6 . 2 Haulers Intercepted 16 | . 1 . 5 3 5 . . 1 . . . . . . . . . . . . 1 . . . . . . . . Recyclers Shooed 9 | 1 . . 1 6 . . . . . . . . . . . . . 1 . . . . . . . . . . . Parts Field Recycled . | . . . . . . . . . . . . . . . . . . . . . . . . . . . . . . Retrieved Matter . | . . . . . . . . . . . . . . . . . . . . . . . . . . . . . . Parts Self-Destructed 9 | . . . . . . . . . . . . 8 . . . . . . . . . . . . 1 . . . . Prevented . | . . . . . . . . . . . . . . . . . . . . . . . . . . . . . . Parts Restored . | . . . . . . . . . . . . . . . . . . . . . . . . . . . . . . Kills | -11 -10 -10 -9 -8 -8 -8 -8 -6 -6 -6 -6 -6 -6 -5 -5 -5 -5 -5 -5 -5 -5 -4 -4 -4 -4 -3 -3 -3 -3 ------- Run | Yrd Mat Min Mat Mat Sto Rec Scr Fac Was Fac Low Low Dat Pro Fac Was Fac Ext Cet Arc Hub Fac Upp Upp Zhi Pro Res Qua Frg Combat Hostiles Destroyed 96 | . 13 3 15 21 8 . . . . 2 . . . . 5 . 11 . . . 1 15 . . . . 1 . 1 Melee 3 | . . . . 1 . . . . . . . . . . . . . . . . . . . . . . 1 . 1 Guns 55 | . 8 . 15 16 . . . . . . . . . . . . . . . . 1 15 . . . . . . . Cannons 11 | . . . . 1 8 . . . . 1 . . . . . . 1 . . . . . . . . . . . . AOE 22 | . 5 3 . 3 . . . . . . . . . . 5 . 6 . . . . . . . . . . . . Classes Destroyed 16 | 2 5 1 3 1 . . . . . 1 . . . . . . 1 . . . 1 1 . . . . . . . Worker 15 | . . 1 6 2 3 . . 1 . . . . . . . . 1 . . . . 1 . . . . . . . Builder 1 | . . . . . . . . . . . . . . . . . . . . . . 1 . . . . . . . Tunneler 14 | 5 . 3 3 1 . . . . . . . . . . 1 . . . . . . 1 . . . . . . . Hauler 16 | . 1 . 5 3 5 . . 1 . . . . . . . . . . . . 1 . . . . . . . . Recycler 11 | 1 . . . 3 . 2 . 2 . . . . . . . . 1 1 . . . 1 . . . . . . . Operator 11 | . . . 3 1 1 . . . . . . . . . . . 2 . . 4 . . . . . . . . . Watcher 10 | . 2 . . . 1 . . 2 . 2 . . . . . . 2 1 . . . . . . . . . . . Swarmer 46 | . 8 3 7 10 . . . . . . . . . . 5 . 7 . . . . 5 . . . . . . 1 Cutter 3 | . . . . . . . . . . . . . . . . . 3 . . . . . . . . . . . . Grunt 17 | . 4 . 3 4 . . . . . . . . . . . . . . . . . 6 . . . . . . . Duelist 1 | . . . 1 . . . . . . . . . . . . . . . . . . . . . . . . . . Protector 1 | . . . . . . . . . . . . . . . . . . . . . 1 . . . . . . . . Sentry 19 | . . . 4 5 8 . . . . . . . . . . . 1 . . . . 1 . . . . . . . Hunter 2 | . . . . 2 . . . . . . . . . . . . . . . . . . . . . . . . . Programmer 6 | . . . . . . . . . . 2 . . . . . . . . . . . 3 . . . . 1 . . Subdweller 1 | . 1 . . . . . . . . . . . . . . . . . . . . . . . . . . . . Packrat 1 | . . . . . . . . . . . . . . . . . . . . . . . 1 . . . . . . Best Kill Streak 8 | 3 3 4 8 8 4 2 . 2 . 2 . . . . 5 . 6 1 . 1 1 6 . . . . 1 . 1 Combat Bots Only 8 | . 3 3 8 5 1 . . . . 1 . . . . 5 . 5 . . . 1 5 . . . . 1 . 1 Max Kills in Single Turn 4 | 1 2 2 2 3 1 1 . 1 . 1 . . . . 4 . 3 1 1 1 1 1 1 . . . 1 . 1 Gunslinging 1 | . 1 . . . . . . . . . . . . . . . . . . . . . . . . . . . . Exploded 4 | . 2 2 . 3 . . . . . . . . . . 4 . 3 . . . . . . . . . . . . Melee 1 | . . . . 1 . . . . . . . . . . . . . . . . . . . . . . 1 . 1 Uniques/NPCs Destroyed 1 | . . . . . . . . . . . . . . . . . . . 1 . . . . . . . . . . A7 (-5/Cetus) Combat | -11 -10 -10 -9 -8 -8 -8 -8 -6 -6 -6 -6 -6 -6 -5 -5 -5 -5 -5 -5 -5 -5 -4 -4 -4 -4 -3 -3 -3 -3 -------- Run | Yrd Mat Min Mat Mat Sto Rec Scr Fac Was Fac Low Low Dat Pro Fac Was Fac Ext Cet Arc Hub Fac Upp Upp Zhi Pro Res Qua Frg Hostile Shots Fired 893 | . 51 6 55 140 24 . . 52 . 7 . . . . 20 . 74 44 3 1 21 228 . . . . 67 51 49 Missed 307 | . 13 2 16 46 6 . . 35 . 2 . . . . 10 . 26 16 . 1 6 68 . . . . 35 16 9 Hits 586 | . 38 4 39 94 18 . . 17 . 5 . . . . 10 . 48 28 3 . 15 160 . . . . 32 35 40 Melee 3 | . . . . . . . . . . . . . . . . . 2 1 . . . . . . . . . . . Projectile 583 | . 38 4 39 94 18 . . 17 . 5 . . . . 10 . 46 27 3 . 15 160 . . . . 32 35 40 AOE 9 | . . . . . . . . . . . . . . . . . 3 . . . . 6 . . . . . . . Critical Strikes 36 | . . . 1 3 1 . . . . 1 . . . . 1 . . 4 2 . . 10 . . . . 4 8 1 Part Disruptions 3 | . . . . . . . . . . . . . . . . . 1 . . . 1 1 . . . . . . . Damage Taken 11101 | . 556 84 443 1360 258 . . 248 . 79 . . . . 425 . 1020 598 142 47 338 3051 . . . . 778 726 948 Core 2480 | . 52 . 63 167 13 . . 20 . . . . . . 83 . 217 228 . . 60 314 . . . . 199 384 680 Absorbed by Shields 575 | . . . . . . . . . . . . . . . . . . 68 24 . . 483 . . . . . . . Redirected to Shielding 88 | . . . . . . . . . . . . . . . 46 . 42 . . . . . . . . . . . . Regen/Repaired (Parts) 429 | . . . . . . . . . . 39 . . . . . . 41 . 6 73 19 251 . . . . . . . Core Remaining (%) 77 | 100 . 79 84 . . . 67 . . . . . . 97 . . . . . . 41 . . . . 72 . . . Volleys Fired 578 | 13 51 11 67 94 53 10 . 41 8 18 1 4 . 1 17 . 32 7 10 21 15 78 . 3 . 3 . 20 . Largest 3 | 2 2 2 2 2 2 2 . 1 1 1 1 1 . 1 1 . 1 1 2 2 2 3 . 1 . 1 . 1 . Hottest 243 | 60 70 60 46 150 150 150 . . . . . . . . 49 . 49 48 70 70 70 243 . 105 . 105 . 51 . Shots Fired 929 | 26 93 18 134 184 85 19 . 41 8 18 1 4 . 1 17 . 32 6 17 38 23 138 . 3 . 3 . 20 . Gun 635 | 26 89 14 134 173 . . . . . . . . . . . . . . 17 38 23 121 . . . . . . . Cannon 161 | . . . . 8 85 19 . . . . . . . . . . . 6 . . . 17 . 3 . 3 . 20 . Launcher 18 | . 4 4 . 3 . . . . . . . . . . 2 . 5 . . . . . . . . . . . . Special 115 | . . . . . . . . 41 8 18 1 4 . 1 15 . 27 . . . . . . . . . . . . Kinetic 593 | 13 47 7 134 173 . . . . . . . . . . . . . 6 17 38 23 115 . . . . . 20 . Thermal 203 | 13 42 7 . 8 85 19 . . . . . . . . . . . . . . . 23 . 3 . 3 . . . Explosive 18 | . 4 4 . 3 . . . . . . . . . . 2 . 5 . . . . . . . . . . . . Electromagnetic . | . . . . . . . . . . . . . . . . . . . . . . . . . . . . . . Impact 115 | . . . . . . . . 41 8 18 1 4 . 1 15 . 27 . . . . . . . . . . . . Robot Hit Streak 13 | 6 8 8 9 13 9 3 . 2 9 12 . . . . 3 . 7 4 2 4 5 6 . . . . . . . Robot Miss Streak 9 | 2 2 3 2 4 2 1 . 2 . 2 . . . . . . 2 3 9 4 8 4 . . . . . . . Penetration Max 1 | . . . . 1 . . . . . . . . . . . . . 1 1 1 . 1 . . . . . . . Secondary Targets 9 | . 1 . 2 4 . . . . . . . . . . . . . . . . . 2 . . . . . . . Max Gunslinging Chain 1 | . 1 . 1 1 . . . . . . . . . . . . . . . . . 1 . . . . . . . Shots Hit Robots 495 | 19 55 6 90 119 44 3 1 5 8 8 . . . . 1 . 15 14 5 17 7 68 1 . 2 . 6 . 1 Core Hits 230 | 7 24 8 43 46 18 1 . 1 . . . . . . 7 . 18 4 3 10 5 31 1 . 1 . 1 . 1 Critical Kills 11 | . . . 1 1 . . . . . . . . . . . . . . . 1 2 6 . . . . . . . Critical Parts Destroyed 30 | . . . . 2 . . . 1 2 5 . . . . . . 2 3 1 3 1 10 . . . . . . . Critical Strikes 45 | . . . 1 3 . . . 1 2 5 . . . . . . 3 4 1 4 3 18 . . . . . . . Burn 1 | . . . . . . . . . . . . . . . . . . . . . . 1 . . . . . . . Destroy 32 | . . . 1 3 . . . . . . . . . . . . . 4 1 4 3 16 . . . . . . . Blast 1 | . . . . . . . . . . . . . . . . . . . . . . 1 . . . . . . . Smash 11 | . . . . . . . . 1 2 5 . . . . . . 3 . . . . . . . . . . . . Melee Attacks 64 | . . . . 15 . . 1 . . . . . . . . . 3 14 . . . . 2 1 2 1 17 4 4 Impact . | . . . . . . . . . . . . . . . . . . . . . . . . . . . . . . Slashing 22 | . . . . 15 . . . . . . . . . . . . . . . . . . . . . 1 6 . . Piercing 41 | . . . . . . . . . . . . . . . . . 3 14 . . . . 2 1 2 . 11 4 4 Sneak Attacks 7 | . . . . 2 . . 1 . . . . . . . . . 1 2 . . . . 1 . . . . . . Combat Hostiles . | . . . . . . . . . . . . . . . . . . . . . . . . . . . . . . Follow-up Attacks 1 | . . . . . . . . . . . . . . . . . . . . . . . . . . . 1 . . Damage Inflicted 15459 | 223 1037 442 1497 2314 1152 75 . 502 517 616 . . . . 529 . 1742 599 282 701 314 2353 69 . 216 . 219 . 60 Guns 7530 | 223 689 74 1383 1812 . . . . . . . . . . . . . . 282 701 314 2052 . . . . . . . Cannons 1776 | . . . . 100 1152 75 . . . . . . . . . . . 163 . . . 286 . . . . . . . Explosions 2166 | . 323 356 . 205 . . . . . . . . . . 409 . 873 . . . . . . . . . . . . Melee 1336 | . . . . 189 . . . . . . . . . . . . 147 436 . . . . 69 . 216 . 219 . 60 Ramming 174 | . 25 12 114 8 . . . . . . . . . . . . . . . . . 15 . . . . . . . Kinetic 7356 | 134 323 51 1383 1812 . . . . . . . . . . . . . 163 282 701 314 2193 . . . . . . . Thermal 1950 | 89 366 23 . 100 1152 75 . . . . . . . . . . . . . . . 145 . . . . . . . Explosive 2065 | . 323 356 . 205 . . . . . . . . . . 409 . 772 . . . . . . . . . . . . Electromagnetic 101 | . . . . . . . . . . . . . . . . . 101 . . . . . . . . . . . . Impact 2477 | . . . . . . . . 502 517 616 . . . . 120 . 722 . . . . . . . . . . . . Slashing 235 | . . . . 189 . . . . . . . . . . . . . . . . . . . . . . 46 . . Piercing 1101 | . . . . . . . . . . . . . . . . . 147 436 . . . . 69 . 216 . 173 . 60 Highest Corruption 46 | . 3 3 . . . . 3 . . . . . . . 10 10 20 30 46 46 46 14 14 14 14 14 8 8 8 Average Corruption 16 | . 1 3 . . . . 3 . . . . . . . 10 10 10 22 33 46 46 12 14 14 14 14 3 8 8 Corruption Purged . | . . . . . . . . . . . . . . . . . . . . . . . . . . . . . . Corruption Blocked . | . . . . . . . . . . . . . . . . . . . . . . . . . . . . . . Effects 227 | . 10 6 . . . . 2 . . . . . . . 7 1 18 49 39 32 16 30 1 3 3 3 1 5 1 Message Errors 55 | . 3 4 . . . . 1 . . . . . . . 2 . 6 6 10 9 2 7 1 1 . 1 . 2 . Matter Fused 37 | . 1 1 . . . . 1 . . . . . . . 2 . 2 7 8 4 4 2 . 1 1 1 . 1 1 Heat Flow Errors 20 | . 1 . . . . . . . . . . . . . 2 . 1 4 4 3 . 1 . 1 1 1 . 1 . Energy Discharges 36 | . 2 1 . . . . . . . . . . . . . . 2 10 5 3 3 8 . . . . 1 1 . Parts Rejected 4 | . . . . . . . . . . . . . . . . . . 1 2 . 1 . . . . . . . . Parts Fused 2 | . . . . . . . . . . . . . . . . . . . . . . 1 . . 1 . . . . Data Loss (minor) 16 | . 2 . . . . . . . . . . . . . . . 1 3 5 2 2 1 . . . . . . . Data Loss (major) 15 | . 1 . . . . . . . . . . . . . . . 3 2 . 5 . 4 . . . . . . . Misfires 1 | . . . . . . . . . . . . . . . . . . . . 1 . . . . . . . . . Alerts 4 | . . . . . . . . . . . . . . . . . 1 1 2 . . . . . . . . . . Misdirections 24 | . . . . . . . . . . . . . . . 1 1 2 14 . . 1 5 . . . . . . . Weapon Failures 13 | . . . . . . . . . . . . . . . . . . 1 3 5 3 1 . . . . . . . Overload Shots . | . . . . . . . . . . . . . . . . . . . . . . . . . . . . . . Overflow Damage 1471 | . 59 8 1 27 10 20 . 302 158 398 . . . . 29 . 310 50 . . . 28 . . 47 . 24 . . Projectiles 1206 | . . . . 10 10 20 . 302 158 398 . . . . . . 280 . . . . 28 . . . . . . . Explosions 117 | . 59 8 . 17 . . . . . . . . . . 29 . 4 . . . . . . . . . . . . Melee 148 | . . . 1 . . . . . . . . . . . . . 26 50 . . . . . . 47 . 24 . . Knockbacks 14 | . . 1 . . . . . 2 . 4 . . . . . . 4 . . . . 3 . . . . . . . Impact 12 | . . 1 . . . . . 2 . 4 . . . . . . 4 . . . . 1 . . . . . . . Kinetic 2 | . . . . . . . . . . . . . . . . . . . . . . 2 . . . . . . . Secondary . | . . . . . . . . . . . . . . . . . . . . . . . . . . . . . . Self-Inflicted Damage 418 | . . 54 . 55 . . . . . . . . . . 228 . 81 . . . . . . . . . . . . Shots 11 | . . 2 . 2 . . . . . . . . . . 4 . 3 . . . . . . . . . . . . Rammed 18 | . 4 2 11 1 . . . . . . . . . . . . . . . . . . . . . . . . . Targets Rammed 19 | . 4 2 11 1 . . . . . . . . . . . . . . . . . 1 . . . . . . . Kicked 1 | . . . . . . . . . . . . . . . . . . . . . . 1 . . . . . . . Crushed . | . . . . . . . . . . . . . . . . . . . . . . . . . . . . . . Highest Temperature 604 | . 121 6 278 234 270 375 . 306 209 313 196 296 182 182 433 104 201 219 198 171 87 604 . 125 239 307 . 92 . Average Temperature 84 | . 39 2 32 45 90 149 . 80 63 103 86 112 84 51 78 54 56 43 75 76 37 156 . 54 112 101 . 49 . Received Heat Transfer 2159 | . 129 . 132 531 108 . . 57 . 9 . . . . 36 . 36 120 9 . 27 605 . . . . 36 252 72 Effects 13 | . . . . . . . . 3 . 3 . . . . . . . . . . . 7 . . . . . . . Shutdowns 2 | . . . . . . . . . . . . . . . . . . . . . . 2 . . . . . . . Energy Bleed 4 | . . . . . . . . . . . . . . . . . . . . . . 4 . . . . . . . Interference 6 | . . . . . . . . 3 . 3 . . . . . . . . . . . . . . . . . . . Matter Decay 1 | . . . . . . . . . . . . . . . . . . . . . . 1 . . . . . . . Siege Activations . | . . . . . . . . . . . . . . . . . . . . . . . . . . . . . . Martial Activations . | . . . . . . . . . . . . . . . . . . . . . . . . . . . . . . Shielding Activations . | . . . . . . . . . . . . . . . . . . . . . . . . . . . . . . Robots Disrupted . | . . . . . . . . . . . . . . . . . . . . . . . . . . . . . . Combat Hostiles . | . . . . . . . . . . . . . . . . . . . . . . . . . . . . . . Robots Corrupted 12 | . . . . . . . . 3 1 2 . . . . . . 6 . . . . . . . . . . . . Combat Hostiles 6 | . . . . . . . . . 1 1 . . . . . . 4 . . . . . . . . . . . . Parts Fried 15 | . . . . . . . . 9 . . . . . . . . 6 . . . . . . . . . . . . Impact Corruptions 36 | . . . 1 . . . . 7 3 13 . . . . . . 11 . . . . 1 . . . . . . . Robots Melted . | . . . . . . . . . . . . . . . . . . . . . . . . . . . . . . Combat Hostiles . | . . . . . . . . . . . . . . . . . . . . . . . . . . . . . . Parts Melted 5 | . . . . . 2 1 . . . . . . . . . . . . . . . 2 . . . . . . . Heat Transferred 3580 | 200 1073 50 . 148 1702 111 . . . . . . . . . . . . . . . 296 . . . . . . . Parts Sabotaged . | . . . . . . . . . . . . . . . . . . . . . . . . . . . . . . Parts Stolen . | . . . . . . . . . . . . . . . . . . . . . . . . . . . . . . Parts Stripped . | . . . . . . . . . . . . . . . . . . . . . . . . . . . . . . Power Chain Reactions . | . . . . . . . . . . . . . . . . . . . . . . . . . . . . . . Alert | -11 -10 -10 -9 -8 -8 -8 -8 -6 -6 -6 -6 -6 -6 -5 -5 -5 -5 -5 -5 -5 -5 -4 -4 -4 -4 -3 -3 -3 -3 ------- Run | Yrd Mat Min Mat Mat Sto Rec Scr Fac Was Fac Low Low Dat Pro Fac Was Fac Ext Cet Arc Hub Fac Upp Upp Zhi Pro Res Qua Frg Maximum Alert Level 2 | . . . . 1 . . . . . . . . . . 1 . 2 1 . . 1 2 . . . . . . . Low Security (%) 88 | 100 100 100 100 83 100 100 . 100 100 100 . . . . 33 100 25 79 100 100 43 35 . . . . 100 100 100 Level 1 9 | . . . . 16 . . . . . . . . . . 66 . 42 20 . . 56 59 . . . . . . . Level 2 1 | . . . . . . . . . . . . . . . . . 32 . . . . 5 . . . . . . . Level 3 . | . . . . . . . . . . . . . . . . . . . . . . . . . . . . . . Level 4 . | . . . . . . . . . . . . . . . . . . . . . . . . . . . . . . Level 5 . | . . . . . . . . . . . . . . . . . . . . . . . . . . . . . . High Security . | . . . . . . . . . . . . . . . . . . . . . . . . . . . . . . Max Security . | . . . . . . . . . . . . . . . . . . . . . . . . . . . . . . Peak Influence 513 | 10 122 82 174 285 89 63 . 149 52 125 . . . . 299 102 513 309 182 157 378 424 . . . . 30 121 65 Initial 178 | . . 10 . 5 25 2 . . 52 . . . . . . 102 71 178 100 26 . 167 . . . . . 7 45 Average 77 | 1 35 15 35 99 33 21 . 18 21 46 . . . . 183 102 311 132 96 81 208 271 . . . . 10 40 25 Influence Increases 7045 | 30 385 119 546 770 426 281 . 343 . 228 . . . . 380 . 712 701 320 258 534 681 . . 5 . 122 169 35 Destroy 0b10 Robot/C 2720 | . 240 60 300 420 160 60 . . . 100 . . . . 100 . 220 340 160 80 140 300 . . . . 20 . 20 Destroy 0b10 Robot/NC 425 | 30 15 20 85 50 50 10 . 30 . 10 . . . . 5 . 30 15 10 20 20 20 . . 5 . . . . Destroy Leader 614 | . 46 10 90 126 92 . . 6 . 34 . . . . 10 . 34 62 . . 44 50 . . . . 10 . . Allied During Kill 541 | . . . . . . 9 . . . . . . . . . . . 125 122 100 185 . . . . . . . . Successful Hack 274 | . 21 . 39 48 18 16 . 20 . 17 . . . . 10 . 13 . . . 8 19 . . . . 22 23 . Select Force Hacks 260 | . 30 . . . . 180 . . . . . . . . . . . . . . 50 . . . . . . . . Disable Machine 420 | . . . . 45 75 . . 15 . 15 . . . . 60 . 90 . . 30 45 15 . . . . . 30 . Destroy Structure 696 | . 18 29 2 51 31 6 . 32 . 7 . . . . 90 . 190 24 28 28 42 82 . . . . 10 26 . Partial Spotted 315 | . . . . . . . . 60 . . . . . . 30 . 30 135 . . . 30 . . . . 30 . . Lose Combat Pursuer 780 | . 15 . 30 30 . . . 180 . 45 . . . . 75 . 105 . . . . 165 . . . . 30 90 15 Influence Decreases 7045 | 30 358 146 533 723 479 288 . 194 149 181 47 . . . 86 192 449 887 433 324 192 633 175 92 128 . 108 102 116 Entered New Map 1238 | . . 17 . 8 35 5 . . 97 . 19 . . . . 192 31 187 79 40 . 175 145 42 123 . . 7 36 Time Decay 4462 | 30 338 119 533 523 443 231 . 194 52 141 28 . . . 86 . 198 302 294 244 90 368 30 50 5 . 71 72 20 Lost Part 432 | . 20 10 . 42 . . . . . . . . . . . . 70 60 20 . . 90 . . . . 37 23 60 Lost Ally 411 | . . . . . 1 . . . . 40 . . . . . . . 188 40 40 102 . . . . . . . . Purge Threat 502 | . . . . 150 . 52 . . . . . . . . . . 150 150 . . . . . . . . . . . Squads Dispatched 81 | . 1 1 4 6 4 . . 14 . 7 . . . . 10 . 14 2 . . 4 8 . . . . 4 2 . Investigation 40 | . 1 1 2 . . . . 9 . 6 . . . . 5 . 7 1 . . 2 4 . . . . 1 1 . Extermination 11 | . . . . . . . . 2 . 1 . . . . 1 . 3 . . . . 3 . . . . 1 . . Reinforcement 19 | . . . 2 3 1 . . 3 . . . . . . 1 . 2 1 . . 2 1 . . . . 2 1 . Assault 3 | . . . . . 2 . . . . . . . . . . . 1 . . . . . . . . . . . . Garrison 8 | . . . . 3 1 . . . . . . . . . 3 . 1 . . . . . . . . . . . . Intercept . | . . . . . . . . . . . . . . . . . . . . . . . . . . . . . . Searches Triggered . | . . . . . . . . . . . . . . . . . . . . . . . . . . . . . . Data Miner Redirects 2 | . . . . . . . . . . . . . . . . . . . . . . 1 . . . . . 1 . Construction Impeded 4 | . . . . 1 1 . . . . . . . . . . . . 1 . . . 1 . . . . . . . Haulers Reinforced 1 | . . . . . . . . . . . . . . . . . . . . . 1 . . . . . . . . Active Scanning Responses . | . . . . . . . . . . . . . . . . . . . . . . . . . . . . . . Cargo Convoy Interrupts . | . . . . . . . . . . . . . . . . . . . . . . . . . . . . . . Stealth | -11 -10 -10 -9 -8 -8 -8 -8 -6 -6 -6 -6 -6 -6 -5 -5 -5 -5 -5 -5 -5 -5 -4 -4 -4 -4 -3 -3 -3 -3 --------- Run | Yrd Mat Min Mat Mat Sto Rec Scr Fac Was Fac Low Low Dat Pro Fac Was Fac Ext Cet Arc Hub Fac Upp Upp Zhi Pro Res Qua Frg Distress Signals 23 | . 3 . 3 3 . . . 3 . . . . . . 2 . 2 3 2 . 1 . . . . . . . 1 Communications Jammed . | . . . . . . . . . . . . . . . . . . . . . . . . . . . . . . Distress Signals . | . . . . . . . . . . . . . . . . . . . . . . . . . . . . . . Times Spotted 350 | . 20 3 34 31 8 . . 42 . 7 . . . 3 21 2 35 23 11 16 13 36 . . . . 17 14 14 Peak Tracking Total 15 | . 3 3 15 4 2 . . 11 . 3 . . . 3 13 2 8 6 5 1 9 9 . . . . 10 8 12 Tactical Retreats 38 | . 2 . 2 1 . . . 12 . 1 . . . . 3 . 6 3 . . . 4 . . . . 1 2 1 ECM-based Alert Blocks 53 | . . . . . . . . 30 . . . . . . 9 . 8 6 . . . . . . . . . . . Traps | -11 -10 -10 -9 -8 -8 -8 -8 -6 -6 -6 -6 -6 -6 -5 -5 -5 -5 -5 -5 -5 -5 -4 -4 -4 -4 -3 -3 -3 -3 ------- Run | Yrd Mat Min Mat Mat Sto Rec Scr Fac Was Fac Low Low Dat Pro Fac Was Fac Ext Cet Arc Hub Fac Upp Upp Zhi Pro Res Qua Frg Traps Triggered 15 | . 2 . 1 . . . . 1 . . . . . . 1 . 2 6 . . . 2 . . . . . . . Indirectly . | . . . . . . . . . . . . . . . . . . . . . . . . . . . . . . Trap Hack Attempts 26 | . . . . . 26 . . . . . . . . . . . . . . . . . . . . . . . . Triggered . | . . . . . . . . . . . . . . . . . . . . . . . . . . . . . . Disarmed . | . . . . . . . . . . . . . . . . . . . . . . . . . . . . . . Reprogrammed 5 | . . . . . 5 . . . . . . . . . . . . . . . . . . . . . . . . Reused . | . . . . . . . . . . . . . . . . . . . . . . . . . . . . . . Traps Extracted . | . . . . . . . . . . . . . . . . . . . . . . . . . . . . . . Installed . | . . . . . . . . . . . . . . . . . . . . . . . . . . . . . . Triggered . | . . . . . . . . . . . . . . . . . . . . . . . . . . . . . . Machines | -11 -10 -10 -9 -8 -8 -8 -8 -6 -6 -6 -6 -6 -6 -5 -5 -5 -5 -5 -5 -5 -5 -4 -4 -4 -4 -3 -3 -3 -3 ---------- Run | Yrd Mat Min Mat Mat Sto Rec Scr Fac Was Fac Low Low Dat Pro Fac Was Fac Ext Cet Arc Hub Fac Upp Upp Zhi Pro Res Qua Frg Machines Disabled 28 | . . . . 3 5 . . 1 . 1 . . . . 4 . 6 . . 2 3 1 . . . . . 2 . Max in Single Turn 3 | . . . . 2 1 . . 1 . 1 . . . . 3 . 2 . . 1 1 1 . . . . . 1 . Garrison Access 8 | . . . . 1 . . . 2 . 2 . . . . 1 . 1 . . . . . . . . . . 1 . Network Hub 1 | . . . . . . . . . . . . . . . . . . . . . 1 . . . . . . . . Machines Repaired . | . . . . . . . . . . . . . . . . . . . . . . . . . . . . . . Machines Dismantled 1 | . . . . . 1 . . . . . . . . . . . . . . . . . . . . . . . . Machines Sabotaged 1 | . . . . . . . . . . . . . . . . . . . . . 1 . . . . . . . . Overloaded Fab Kills . | . . . . . . . . . . . . . . . . . . . . . . . . . . . . . . Hacking | -11 -10 -10 -9 -8 -8 -8 -8 -6 -6 -6 -6 -6 -6 -5 -5 -5 -5 -5 -5 -5 -5 -4 -4 -4 -4 -3 -3 -3 -3 --------- Run | Yrd Mat Min Mat Mat Sto Rec Scr Fac Was Fac Low Low Dat Pro Fac Was Fac Ext Cet Arc Hub Fac Upp Upp Zhi Pro Res Qua Frg Machines Accessed 147 | . 10 1 12 10 9 12 2 19 . 15 . . 3 . 9 . 17 5 . . 2 9 . . 4 . 4 4 . Terminals 78 | . 8 . 9 8 9 6 . 8 . 4 . . . . 3 . 7 4 . . 2 4 . . . . 3 3 . Fabricators 4 | . . . . . . . . . . 2 . . . . . . 2 . . . . . . . . . . . . Repair Stations 4 | . 1 . . . . . . . . 1 . . . . . . 2 . . . . . . . . . . . . Recycling Units 38 | . 1 . 2 . . 6 . 8 . 6 . . . . 4 . 5 1 . . . 4 . . . . 1 . . Scanalyzers 4 | . . . 1 1 . . . 1 . . . . . . . . . . . . . 1 . . . . . . . Garrison Access 9 | . . . . 1 . . . 2 . 2 . . . . 2 . 1 . . . . . . . . . . 1 . Total Hacks 371 | . 27 1 35 37 28 28 20 31 . 28 . . 16 . 15 . 34 10 . . 7 22 . . 17 . 6 9 . Successful 241 | . 12 1 17 24 18 18 20 17 . 19 . . 16 . 5 . 20 8 . . 3 18 . . 17 . 5 3 . Failed 127 | . 15 . 18 12 10 9 . 14 . 9 . . . . 10 . 14 2 . . 4 3 . . . . 1 6 . Catastrophic 17 | . 1 . 4 1 1 1 . 1 . 1 . . . . 2 . 2 . . . 1 . . . . . 1 1 . Database Lockouts 3 | . . . . 1 . 1 . . . . . . . . . . . . . . . 1 . . . . . . . Manual 224 | . 22 . 21 26 16 24 . 22 . 19 . . . . 15 . 19 9 1 . 7 13 . . . . 4 6 . Terminals 221 | . 23 . 31 31 28 18 . 16 . 11 . . . . 7 . 14 9 . . 7 15 . . . . 5 6 . Fabricators 12 | . . . . . . . . . . 6 . . . . . . 6 . . . . . . . . . . . . Repair Stations 8 | . 2 . . . . . . . . 2 . . . . . . 4 . . . . . . . . . . . . Recycling Units 47 | . 2 . 3 . . 10 . 9 . 6 . . . . 6 . 5 1 . . . 4 . . . . 1 . . Scanalyzers 11 | . . . 1 5 . . . 2 . . . . . . . . . . . . . 3 . . . . . . . Garrison Access 18 | . . . . 1 . . . 4 . 3 . . . . 2 . 5 . . . . . . . . . . 3 . Terminal Hacks 121 | . 3 1 9 12 12 2 20 2 . 3 . . 16 . . . 6 2 . . 1 9 . . 17 . 4 2 . Record 30 | . . . . . . . 19 . . . . . 6 . . . . . . . . . . . 5 . . . . Part Schematic 13 | . . . . 1 . 1 . . . 1 . . 6 . . . . . . . . . . . 4 . . . . Robot Schematic 4 | . . . . . . . . . . . . . 4 . . . . . . . . . . . . . . . . Robot Analysis 6 | . 1 . 1 . . . . . . . . . . . . . . . . . . . . . 4 . . . . Prototype ID Bank 12 | . . . 3 1 3 . . . . . . . . . . . . . . . . 1 . . 4 . . . . Open Door 3 | . . 1 . . 2 . . . . . . . . . . . . . . . . . . . . . . . . Level Access Points 1 | . . . . . . . . . . . . . . . . . . . . . 1 . . . . . . . . Branch Access Points 4 | . . . . 1 . . . . . . . . . . . . 1 . . . . 1 . . . . 1 . . Terminal Index 6 | . . . . 1 1 . . . . 1 . . . . . . 1 . . . . 1 . . . . 1 . . Recycling Unit Index 1 | . . . . . . . . . . . . . . . . . 1 . . . . . . . . . . . . Scanalyzer Index 1 | . . . . 1 . . . . . . . . . . . . . . . . . . . . . . . . . Alert Level 8 | . . . 2 2 1 . . . . . . . . . . . 1 1 . . . 1 . . . . . . . Unreport Threat 4 | . . . . 1 . 1 . . . . . . . . . . 1 1 . . . . . . . . . . . Locate Traps 6 | . 1 . 1 . 3 . . 1 . . . . . . . . . . . . . . . . . . . . . Patrol Status 1 | . . . . 1 . . . . . . . . . . . . . . . . . . . . . . . . . Transport Status 1 | . . . . 1 . . . . . . . . . . . . . . . . . . . . . . . . . Recall Investigation 1 | . . . . . . . . 1 . . . . . . . . . . . . . . . . . . . . . Recall Extermination 1 | . . . . . . . . . . . . . . . . . . . . . . 1 . . . . . . . Recall Reinforcements 1 | . . . . . . . . . . . . . . . . . . . . . . 1 . . . . . . . Hauler Manifests 4 | . . . 1 1 1 . . . . 1 . . . . . . . . . . . . . . . . . . . Registered Components 6 | . 1 . 1 1 . . . . . . . . . . . . 1 . . . . 1 . . . . 1 . . Zone Layout 6 | . . . . . 1 . . . . . . . . . . . . . . . . 2 . . . . 1 2 . Proto ID Catalog 1 | . . . . . . . 1 . . . . . . . . . . . . . . . . . . . . . . Fabricator Hacks 3 | . . . . . . . . . . 1 . . . . . . 2 . . . . . . . . . . . . Network Status 2 | . . . . . . . . . . 1 . . . . . . 1 . . . . . . . . . . . . Load Schematic 1 | . . . . . . . . . . . . . . . . . 1 . . . . . . . . . . . . Repair Station Hacks 3 | . . . . . . . . . . 2 . . . . . . 1 . . . . . . . . . . . . Scan Component 2 | . . . . . . . . . . 1 . . . . . . 1 . . . . . . . . . . . . Repair 1 | . . . . . . . . . . 1 . . . . . . . . . . . . . . . . . . . Recycling Unit Hacks 5 | . . . 2 . . 3 . . . . . . . . . . . . . . . . . . . . . . . Retrieve Components 5 | . . . 2 . . 3 . . . . . . . . . . . . . . . . . . . . . . . Scanalyzer 10 | . . . 1 5 . . . 2 . . . . . . . . . . . . . 2 . . . . . . . Insert Component 3 | . . . . 2 . . . 1 . . . . . . . . . . . . . . . . . . . . . Analyze 3 | . . . . 3 . . . . . . . . . . . . . . . . . . . . . . . . . Retrieve Study 4 | . . . 1 . . . . 1 . . . . . . . . . . . . . 2 . . . . . . . Garrison Access Hacks 8 | . . . . 1 . . . 2 . 2 . . . . 1 . 1 . . . . . . . . . . 1 . Seal Access 8 | . . . . 1 . . . 2 . 2 . . . . 1 . 1 . . . . . . . . . . 1 . Unauthorized Hacks 91 | . 9 . 5 6 6 13 . 11 . 11 . . . . 4 . 10 6 . . 2 7 . . . . 1 . . Terminals 50 | . 8 . 4 6 6 7 . 4 . 2 . . . . 1 . 2 5 . . 2 3 . . . . . . . Track 2 | . . . . 2 . . . . . . . . . . . . . . . . . . . . . . . . . Assimilate 7 | . . . . . 4 . . 2 . . . . . . . . . . . . . 1 . . . . . . . Botnet 21 | . 2 . 2 3 2 2 . 2 . 2 . . . . 1 . 2 2 . . . 1 . . . . . . . Operators 3 | . . . 1 1 . . . . . . . . . . . . . . . . . 1 . . . . . . . Skim 15 | . 6 . 1 . . 5 . . . . . . . . . . . 3 . . . . . . . . . . . Sabotage 2 | . . . . . . . . . . . . . . . . . . . . . 2 . . . . . . . . Fabricators 5 | . . . . . . . . . . 3 . . . . . . 2 . . . . . . . . . . . . Liberate 3 | . . . . . . . . . . 2 . . . . . . 1 . . . . . . . . . . . . Haulers 1 | . . . . . . . . . . 1 . . . . . . . . . . . . . . . . . . . Recompile 1 | . . . . . . . . . . . . . . . . . 1 . . . . . . . . . . . . Repair Stations 1 | . . . . . . . . . . . . . . . . . 1 . . . . . . . . . . . . Patch 1 | . . . . . . . . . . . . . . . . . 1 . . . . . . . . . . . . Recycling Units 35 | . 1 . 1 . . 6 . 7 . 6 . . . . 3 . 5 1 . . . 4 . . . . 1 . . Recyclers 1 | . . . 1 . . . . . . . . . . . . . . . . . . . . . . . . . . Tunnel 7 | . 1 . . . . 6 . . . . . . . . . . . . . . . . . . . . . . . Fedlink 27 | . . . . . . . . 7 . 6 . . . . 3 . 5 1 . . . 4 . . . . 1 . . Scanalyzers . | . . . . . . . . . . . . . . . . . . . . . . . . . . . . . . Garrison Access . | . . . . . . . . . . . . . . . . . . . . . . . . . . . . . . Data Cores Recovered 3 | . . . 1 . 1 . . . . . . . . . . . 1 . . . . . . . . . . . . Used 1 | . . . 1 . . . . . . . . . . . . . . . . . . . . . . . . . . Hacking Detections 89 | . 10 . 9 9 7 6 . 11 . 8 . . . . 6 . 11 2 . . 2 4 . . . . 2 2 . Full Trace Events 5 | . . . 1 . . . . 2 . . . . . . 2 . . . . . . . . . . . . . . Feedback Events . | . . . . . . . . . . . . . . . . . . . . . . . . . . . . . . Feedback Blocked . | . . . . . . . . . . . . . . . . . . . . . . . . . . . . . . Robot Schematics Acquired 4 | . . . . . . . . . . . . . 4 . . . . . . . . . . . . . . . . Robots Built . | . . . . . . . . . . . . . . . . . . . . . . . . . . . . . . Authchips . | . . . . . . . . . . . . . . . . . . . . . . . . . . . . . . Time . | . . . . . . . . . . . . . . . . . . . . . . . . . . . . . . Total Robot Build Rating . | . . . . . . . . . . . . . . . . . . . . . . . . . . . . . . Part Schematics Acquired 15 | . . . . 3 . 1 . . . 1 . . 6 . . . . . . . . . . . 4 . . . . Parts Built . | . . . . . . . . . . . . . . . . . . . . . . . . . . . . . . Authchips . | . . . . . . . . . . . . . . . . . . . . . . . . . . . . . . Time . | . . . . . . . . . . . . . . . . . . . . . . . . . . . . . . Total Part Build Rating . | . . . . . . . . . . . . . . . . . . . . . . . . . . . . . . Part Studies Acquired 4 | . . . 1 . . . . 1 . . . . . . . . . . . . . 2 . . . . . . . Parts Repaired 1 | . . . . . . . . . . 1 . . . . . . . . . . . . . . . . . . . Time 86 | . . . . . . . . . . 86 . . . . . . . . . . . . . . . . . . . Parts Recycled . | . . . . . . . . . . . . . . . . . . . . . . . . . . . . . . Recycled Matter . | . . . . . . . . . . . . . . . . . . . . . . . . . . . . . . Retrieved Matter . | . . . . . . . . . . . . . . . . . . . . . . . . . . . . . . Retrieved Components 10 | . . . 7 . . 3 . . . . . . . . . . . . . . . . . . . . . . . Parts Scanalyzed 2 | . . . . 2 . . . . . . . . . . . . . . . . . . . . . . . . . Part Schematics Acquired 2 | . . . . 2 . . . . . . . . . . . . . . . . . . . . . . . . . Parts Damaged . | . . . . . . . . . . . . . . . . . . . . . . . . . . . . . . Bothacking | -11 -10 -10 -9 -8 -8 -8 -8 -6 -6 -6 -6 -6 -6 -5 -5 -5 -5 -5 -5 -5 -5 -4 -4 -4 -4 -3 -3 -3 -3 ------------ Run | Yrd Mat Min Mat Mat Sto Rec Scr Fac Was Fac Low Low Dat Pro Fac Was Fac Ext Cet Arc Hub Fac Upp Upp Zhi Pro Res Qua Frg Used RIF Installer . | . . . . . . . . . . . . . . . . . . . . . . . . . . . . . . Robots Hacked 1 | . . . . . . . 1 . . . . . . . . . . . . . . . . . . . . . . Non-combat . | . . . . . . . . . . . . . . . . . . . . . . . . . . . . . . Combat 1 | . . . . . . . 1 . . . . . . . . . . . . . . . . . . . . . . Robot Hacks Applied 1 | . . . . . . . 1 . . . . . . . . . . . . . . . . . . . . . . parse_system 1 | . . . . . . . 1 . . . . . . . . . . . . . . . . . . . . . . Relay Couplers Released . | . . . . . . . . . . . . . . . . . . . . . . . . . . . . . . Fabnet Peak Effective % . | . . . . . . . . . . . . . . . . . . . . . . . . . . . . . . Robots Rewired 12 | . . . . . . . . . . . . . . . . . . 12 . . . . . . . . . . . Allies Hacked . | . . . . . . . . . . . . . . . . . . . . . . . . . . . . . . Hacks Repelled . | . . . . . . . . . . . . . . . . . . . . . . . . . . . . . . Allies | -11 -10 -10 -9 -8 -8 -8 -8 -6 -6 -6 -6 -6 -6 -5 -5 -5 -5 -5 -5 -5 -5 -4 -4 -4 -4 -3 -3 -3 -3 -------- Run | Yrd Mat Min Mat Mat Sto Rec Scr Fac Was Fac Low Low Dat Pro Fac Was Fac Ext Cet Arc Hub Fac Upp Upp Zhi Pro Res Qua Frg Total Allies 38 | . . . . . 3 . . 2 . 2 . . . . . . . 26 5 . . . . . . . . . . Largest Group 11 | . . . . . 2 2 2 2 . 2 . . . . . . . 11 9 8 6 . . . . . . . . Highest-Rated Group 707 | . . . . . 62 62 62 41 . 64 . . . . . . . 373 707 548 502 . . . . . . . . Highest-Rated Ally 159 | . . . . . 31 31 31 31 . 32 . . . . . . . 159 159 96 96 . . . . . . . . Initial UFD Resources 125 | . . . . . . . . 22 46 46 58 58 58 62 62 78 78 88 90 90 90 94 112 112 112 115 115 125 125 Total Orders 3 | . . . . . 3 . . . . . . . . . . . . . . . . . . . . . . . . STAY 2 | . . . . . 2 . . . . . . . . . . . . . . . . . . . . . . . . FOLLOW 1 | . . . . . 1 . . . . . . . . . . . . . . . . . . . . . . . . Ally Attacks 279 | . . . . . . 7 . 3 . 16 . . . . . . . 132 52 25 44 . . . . . . . . Total Damage 8580 | . . . . . . 151 . 20 . 531 . . . . . . . 2995 2149 919 1815 . . . . . . . . Kills 47 | . . . . . . 3 . . . 3 . . . . . . . 18 10 4 9 . . . . . . . . Allies Corrupted 2 | . . . . . . . . . . . . . . . . . . . . . 2 . . . . . . . . Allies Melted 1 | . . . . . . . . . . . . . . . . . . 1 . . . . . . . . . . . Intel | -11 -10 -10 -9 -8 -8 -8 -8 -6 -6 -6 -6 -6 -6 -5 -5 -5 -5 -5 -5 -5 -5 -4 -4 -4 -4 -3 -3 -3 -3 ------- Run | Yrd Mat Min Mat Mat Sto Rec Scr Fac Was Fac Low Low Dat Pro Fac Was Fac Ext Cet Arc Hub Fac Upp Upp Zhi Pro Res Qua Frg Active Infowar (turns) 15371 | 61 1568 579 1879 1625 1321 764 1986 689 145 350 63 277 20 142 235 14 416 737 644 568 206 512 69 110 73 94 197 27 . Optics 1404 | . . . . . . . . . . . . . . . 187 14 416 737 50 . . . . . . . . . . Sensors 9263 | . . . . . 1289 764 1984 689 145 349 63 273 20 142 235 14 136 737 644 568 206 435 69 110 73 94 197 27 . Structural 1460 | . . . . . . . 124 40 10 321 63 277 20 142 226 14 223 . . . . . . . . . . . . Seismic 6404 | 61 1568 579 1879 1625 32 . 2 . . . . . . . . . . . . . . 164 69 110 65 94 156 . . ECM 1400 | . . . . . . . . 398 . . . . . . 81 . 102 737 82 . . . . . . . . . . Robot Analysis Total 6 | . 1 . 1 . . . . . . . . . . . . . . . . . . . . . 4 . . . . Derelict Logs Recovered 6 | . . 1 . . . . . . . . 2 . . 1 . . . . . . . . 1 1 . . . . . Drone Launches . | . . . . . . . . . . . . . . . . . . . . . . . . . . . . . . Drone Recoveries . | . . . . . . . . . . . . . . . . . . . . . . . . . . . . . . Exploration | -11 -10 -10 -9 -8 -8 -8 -8 -6 -6 -6 -6 -6 -6 -5 -5 -5 -5 -5 -5 -5 -5 -4 -4 -4 -4 -3 -3 -3 -3 ------------- Run | Yrd Mat Min Mat Mat Sto Rec Scr Fac Was Fac Low Low Dat Pro Fac Was Fac Ext Cet Arc Hub Fac Upp Upp Zhi Pro Res Qua Frg Turns Passed 18032 | 221 1612 579 2362 1728 1356 764 3216 706 145 360 63 277 20 142 235 14 416 737 660 568 207 847 69 110 73 94 197 206 48 Spaces Moved 16929 | 105 813 307 1211 795 748 548 2457 1995 285 976 183 388 82 223 549 64 1146 1044 333 129 100 943 177 252 149 143 390 329 65 Core 50 | 2 . . . . . . 1 . . . . . . . . . . . . . . . . . . . . 4 43 Treads 3187 | 103 813 307 1211 674 79 . . . . . . . . . . . . . . . . . . . . . . . . Legs 291 | . . . . . . . . . . . . . . . . . . . . . 39 252 . . . . . . . Wheels 4139 | . . . . 121 669 548 2334 . . . . . . . . . . . 277 129 61 . . . . . . . . Hover 13 | . . . . . . . . . . . . . . . . . . . . . . . . . . . . 1 12 Flight 9249 | . . . . . . . 122 1995 285 976 183 388 82 223 549 64 1146 1044 56 . . 691 177 252 149 143 390 324 10 Fastest Speed 6 | 50 160 160 160 115 115 120 29 20 20 20 20 20 20 20 20 20 14 6 29 130 120 34 34 34 34 34 34 39 40 Average Speed 77 | 157 160 160 160 160 128 125 125 20 20 20 20 20 20 20 20 20 19 22 107 130 130 56 34 34 34 34 35 41 48 Slowest Speed 260 | 160 160 160 160 240 240 150 200 20 93 90 20 20 20 20 20 20 23 29 255 130 260 120 34 34 34 34 39 250 150 Overloaded Moves 31 | . . . . . . . . . . . . . . . . . 30 1 . . . . . . . . . . . Propulsion Burnouts . | . . . . . . . . . . . . . . . . . . . . . . . . . . . . . . Robots Hopped 58 | . . . . . . . . 15 . 6 2 . . . 5 . 10 6 . . . 5 . 1 . 1 6 . 1 Potential Cave-ins 3 | . . . . . . . . . . . . . . . . . . . . . . . . . . . . 3 . Cave-ins Triggered 1 | . . . . . . . . . . . . . . . . . . . . . . . . . . . 1 . . Teleports 1 | . . . . . . . . . . . . . . . . . . . . . . . . . . . . 1 . Exploration Rate (%) 53 | 7 97 57 68 56 74 98 82 65 89 27 40 53 69 54 23 83 41 85 67 81 10 32 43 46 60 26 18 44 5 Regions Visited 29 Branch Regions 18 Pre-discovered Areas 21 | . 3 . . . 1 8 3 1 . . . . 1 . . . . . . . . . . 1 3 . . . . Known Exits Taken 23 | . . 1 1 1 1 1 1 . . 1 1 1 1 1 . . 1 1 1 1 1 1 1 1 1 1 1 1 . Unknown Exits Taken 2 | 1 1 . . . . . . . . . . . . . . . . . . . . . . . . . . . . Scrap Searched 23 | . . 1 . . . . 6 . . . 3 8 . 2 . . . . . . . . 1 1 . 1 . . . Spaces Dug 209 | . 8 17 . 24 8 5 . 28 . 4 1 2 . 1 34 . 39 2 . . 4 7 1 3 . 3 6 12 . Terrain Destroyed 496 | . 15 32 . 62 32 16 . 34 . 7 1 4 . 1 60 . 109 2 8 14 13 53 1 4 . 4 6 18 . Melee 24 | . . . . 10 . . . . . . . . . . . . . 2 . . . . 1 1 . 1 6 3 . Projectile 233 | . . . . 4 32 16 . 34 . 7 1 4 . 1 13 . 12 . 8 14 13 53 . 3 . 3 . 15 . AOE 239 | . 15 32 . 48 . . . . . . . . . . 47 . 97 . . . . . . . . . . . . Terrain Rammed . | . . . . . . . . . . . . . . . . . . . . . . . . . . . . . . Walls Destroyed . | . . . . . . . . . . . . . . . . . . . . . . . . . . . . . . Machines Disabled . | . . . . . . . . . . . . . . . . . . . . . . . . . . . . . . Actions | -11 -10 -10 -9 -8 -8 -8 -8 -6 -6 -6 -6 -6 -6 -5 -5 -5 -5 -5 -5 -5 -5 -4 -4 -4 -4 -3 -3 -3 -3 --------- Run | Yrd Mat Min Mat Mat Sto Rec Scr Fac Was Fac Low Low Dat Pro Fac Was Fac Ext Cet Arc Hub Fac Upp Upp Zhi Pro Res Qua Frg Total 20804 | 130 1030 376 1516 1034 1044 609 2599 2253 363 1111 205 582 84 318 650 64 1284 1507 612 490 149 1134 181 269 166 182 419 371 72 Wait 2383 | . 136 45 136 46 146 42 18 187 62 115 24 186 3 95 79 1 71 330 230 326 20 34 . 10 . 23 14 1 3 Move 16794 | 104 812 306 1210 794 747 547 2456 1968 284 963 178 387 81 222 540 63 1127 1032 332 128 99 933 176 249 148 140 377 328 63 Hop 50 | . . . . . . . . 12 . 6 2 . . . 4 . 8 5 . . . 4 . 1 . 1 6 . 1 Pick Up 177 | 5 15 2 26 24 16 4 33 3 1 1 . . . . . . 2 10 6 5 4 13 1 . 3 . 1 2 . Fast Attach 122 | 7 . . 4 . 1 . 15 2 3 . . 2 . . 2 . 11 8 14 1 7 21 1 2 7 7 3 4 . Attach 78 | . 3 1 4 8 1 2 11 8 . . . . . . 2 . 11 3 5 . . 12 . 1 . . . 5 1 Detach 29 | . . . 2 . . . 11 1 . . . . . . 1 . 7 1 1 . . 2 . . . 1 . 2 . Swap 130 | 1 5 5 22 34 25 . 4 8 1 8 . 1 . . 4 . 4 . 2 3 . 3 . . . . . . . Drop 263 | . 4 4 34 18 21 4 50 23 4 . . 2 . . 1 . 8 11 12 6 4 33 1 2 6 6 4 5 . Fire 578 | 13 51 11 67 94 53 10 . 41 8 18 1 4 . 1 17 . 32 7 10 21 15 78 . 3 . 3 . 20 . Melee 61 | . . . . 15 . . 1 . . . . . . . . . 3 14 . . . . 2 1 2 1 14 4 4 Ram . | . . . . . . . . . . . . . . . . . . . . . . . . . . . . . . Kick 1 | . . . . . . . . . . . . . . . . . . . . . . 1 . . . . . . . Crush 18 | . 4 2 11 1 . . . . . . . . . . . . . . . . . . . . . . . . . Escape Stasis 33 | . . . . . . . . . . . . . . . . . . 33 . . . . . . . . . . . Rewire 53 | . . . . . . . . . . . . . . . . . . 53 . . . . . . . . . . . Trap 26 | . . . . . 26 . . . . . . . . . . . . . . . . . . . . . . . . Miscellaneous 8 | . . . . . 8 . . . . . . . . . . . . . . . . . . . . . . . . Route ------- -11/Scrapyard -10/Materials (discovered 5 exits: *Mat x3 / *Min / [*Sub]) -10/Mines -9/Materials (discovered 4 exits: *Mat x3 / [*Min]) -8/Materials (discovered 2 exits: [*Fac] / *Sto) -8/Storage (discovered 2 exits: [*Fac] / *Rec) -8/Recycling (discovered 2 exits: *Fac / *Scr) -8/Scraptown (discovered 2 exits: *Fac x2) -6/Factory (discovered 6 exits: *Fac x4 / *Low x2) -6/Waste -6/Factory (discovered 3 exits: *Fac / *Low x2) -6/Lower Caves -6/Lower Caves -6/Data Miner -5/Proximity Caves -5/Factory (discovered 3 exits: Fac / *Upp x2) -5/Waste -5/Factory (discovered 5 exits: Fac / Upp x2 / *Ext x2) -5/Extension (discovered 2 exits: *Fac / *Cet) -5/Cetus (discovered 2 exits: *Fac / *Arc) -5/Archives (discovered 2 exits: *Fac / *Hub) -5/Hub_04(d) (discovered 4 exits: *Fac x4) -4/Factory (discovered 4 exits: Res x2 / *Upp x2) -4/Upper Caves -4/Upper Caves -4/Zhirov -3/Proximity Caves -3/Research (discovered 4 exits: *Res / Arm / *Qua x2) -3/Quarantine (discovered 2 exits: *Sec / *Frg) -3/Protoforge History --------- Turn | Location | Event 46 | -11/Scrapyard | Discovered new exit (range 15) 222 | -11/Scrapyard | Entered Materials 309 | -10/Materials | Build established: Mutant 367 | -10/Materials | Discovered new exit (range 16) 528 | -10/Materials | Discovered new exit (range 7) 566 | -10/Materials | Discovered new exit (range 9) 901 | -10/Materials | Discovered new exit (range 13) 922 | -10/Materials | Derelicts attacked the area 1025 | -10/Materials | Identified exit to Materials 1468 | -10/Materials | Learned location of Mines (-8) 1532 | -10/Materials | Learned location of 2 exits from Materials 1584 | -10/Materials | Learned location of 1 exit from Recycling 1662 | -10/Materials | Learned location of 2 exits from Subcaves 1759 | -10/Materials | Learned Storage garrison access intel 1834 | -10/Materials | Entered Mines 1844 | -10/Mines | Discovered exit to Materials (range 9) 1950 | -10/Mines | Met a Derelict shopkeep closing up shop 2170 | -10/Mines | Learned 2 Materials zone layouts 2413 | -10/Mines | Entered Materials 2413 | -9/Materials | Evolved 2 slots: Propulsion x1, Utility x1 2414 | -9/Materials | Identified exit to Materials 2640 | -9/Materials | Destroyed 8 combat bots 2972 | -9/Materials | Build established: Scavenger-Mutant 3145 | -9/Materials | Discovered new exit (range 11) 3797 | -9/Materials | Discovered exit to Materials (range 7) 4775 | -9/Materials | Entered another Materials area 4775 | -8/Materials | Evolved 2 slots: Propulsion x1, Utility x1 4785 | -8/Materials | Discovered new exit (range 13) 4804 | -8/Materials | Identified exit to Storage 4830 | -8/Materials | Garrison activated, responded to threat 5139 | -8/Materials | Found Prototype Launcher 5139 | -8/Materials | Identified Rocket Array 5274 | -8/Materials | Discovered new exit (range 12) 5305 | -8/Materials | Central database locked down 6503 | -8/Materials | Entered Storage 6504 | -8/Storage | Loaded intel: 1 garrison access location 7068 | -8/Storage | Learned location of Armory (-3) 7102 | -8/Storage | Build established: Mutant 7102 | -8/Storage | Discovered new exit (range 15) 7559 | -8/Storage | Used back door to open Recycling access 7559 | -8/Storage | Discovered new exit (range 5) 7704 | -8/Storage | Garrison activated, responded to threat 7764 | -8/Storage | Met a pair of Derelict thieves 7841 | -8/Storage | Identified exit to Recycling 7859 | -8/Storage | Entered Recycling 7859 | -8/Recycling | Accompanied by 2 allies 7860 | -8/Recycling | Identified exit to Scraptown 8232 | -8/Recycling | Discovered new exit (range 11) 8233 | -8/Recycling | Watched by a mysterious "MATRIX" hacker. 8304 | -8/Recycling | Learned Factory emergency access door positions 8363 | -8/Recycling | Learned Factory trap positions 8414 | -8/Recycling | Learned location of Lower Caves (-6) 8454 | -8/Recycling | Learned Storage emergency access door positions 8483 | -8/Recycling | Learned location of 2 exits from Factory 8500 | -8/Recycling | Learned Factory trap positions 8527 | -8/Recycling | Learned location of 3 exits from Factory 8587 | -8/Recycling | Scanned before Scraplab entrance 8609 | -8/Recycling | Entered Scraplab 8623 | -8/Recycling | Entered Scraptown 8623 | -8/Scraptown | Accompanied by 2 allies 8700 | -8/Scraptown | Visited Science Testing Area 8724 | -8/Scraptown | Visited Symbiants 8763 | -8/Scraptown | Visited Awakened 8818 | -8/Scraptown | Visited Fellowship of the Rings 8836 | -8/Scraptown | Heard Great Nut preacher, LISTEN AND RECITE! 8898 | -8/Scraptown | Visited Assassins FH 8923 | -8/Scraptown | Visited TADAMA 9388 | -8/Scraptown | Visited UFD Registry 9388 | -8/Scraptown | Registered with UFD as "Longeater" 9418 | -8/Scraptown | Visited Junk Cannon Lab 9444 | -8/Scraptown | Visited Science Guys 9496 | -8/Scraptown | Visited A0-MCA Data Center 9520 | -8/Scraptown | Visited Curators Association 9568 | -8/Scraptown | Visited Supply Room 9594 | -8/Scraptown | Visited Research Penetration Think Tank 9607 | -8/Scraptown | Visited Cartography Club 9631 | -8/Scraptown | Visited DA-N13 Charitable Foundation 9639 | -8/Scraptown | Found DCF Scrap (28 items) 9679 | -8/Scraptown | Visited Scrap Suit Storage 9709 | -8/Scraptown | Visited LU-1G1's Boring Crew 10410 | -8/Scraptown | Found Deep Structural Scanner 10419 | -8/Scraptown | Learned location of Recycling (-8) 10419 | -8/Scraptown | Learned location of Extension (-5) 10419 | -8/Scraptown | Learned location of Quarantine (-3) 10419 | -8/Scraptown | Learned 12 Factory zone layouts 10419 | -8/Scraptown | Learned 16 Factory zone layouts 10419 | -8/Scraptown | Learned 20 Factory zone layouts 10419 | -8/Scraptown | Learned 4 Access zone layouts 10419 | -8/Scraptown | Learned 12 Lower Caves zone layouts 10419 | -8/Scraptown | Learned 24 Upper Caves zone layouts 10419 | -8/Scraptown | Learned 12 Proximity Caves zone layouts 10419 | -8/Scraptown | Learned 20 Lower Caves zone layouts 10419 | -8/Scraptown | Learned 24 Proximity Caves zone layouts 10419 | -8/Scraptown | Learned 20 Proximity Caves zone layouts 10419 | -8/Scraptown | Learned Materials emergency access door positions 10419 | -8/Scraptown | Learned location of 3 exits from Factory 10419 | -8/Scraptown | Learned location of 1 exit from Upper Caves 10419 | -8/Scraptown | Identified exit to Factory 10626 | -8/Scraptown | Given an A+ rating by A0-MCA 10842 | -8/Scraptown | System corruption cleaned by C-Scrubber 11021 | -8/Scraptown | Found Prototype Special Weapon 11023 | -8/Scraptown | Identified Junk Cannon 11319 | -8/Scraptown | Found A0-MCA's Component Scanner 11767 | -8/Scraptown | Met Optimus 11767 | -8/Scraptown | Accepted into 0bPrime 11839 | -8/Scraptown | Entered Factory 11839 | -6/Factory | Accompanied by 1 ally 11839 | -6/Factory | Evolved 4 slots: Power x1, Propulsion x2, Utility x1 11840 | -6/Factory | Identified exit to Factory 11841 | -6/Factory | Identified exit to Lower Caves 11843 | -6/Factory | Loaded intel: 105 trap records 11914 | -6/Factory | Loaded intel: 8 recycling unit locations 11919 | -6/Factory | Learned location of Protoforge (-3) 12123 | -6/Factory | Spotted B-75 Beast 12273 | -6/Factory | Build established: Hacker-Sprinter 12545 | -6/Factory | Manually triggered Chute Trap 12545 | -6/Factory | Sucked down chute 12545 | -6/Factory | Entered Waste 12545 | -6/Waste | The area was eerily silent 12610 | -6/Waste | Discovered new exit (range 16) 12679 | -6/Waste | Identified exit to Factory 12690 | -6/Waste | Entered Factory 12692 | -6/Factory | Loaded intel: 89 trap records 12725 | -6/Factory | Loaded intel: 8 recycling unit locations 12918 | -6/Factory | Repaired Broken Micro-nuke Launcher? 12958 | -6/Factory | Build established: Hacker-Scout 13050 | -6/Factory | Entered Lower Caves 13051 | -6/Lower Caves | Identified exit to Lower Caves 13062 | -6/Lower Caves | Learned 4 Factory zone layouts 13075 | -6/Lower Caves | Learned Factory garrison access intel 13113 | -6/Lower Caves | Entered another Lower Caves area 13114 | -6/Lower Caves | Identified exit to Data Miner 13135 | -6/Lower Caves | Encountered a Warlord checkpoint 13390 | -6/Lower Caves | Entered Data Miner 13390 | -6/Data Miner | Discovered new exit (range 6) 13397 | -6/Data Miner | Met Data Miner 13402 | -6/Data Miner | Learned location of Section 7 (-3) 13402 | -6/Data Miner | Acquired the access code to Warlord's prototype stash 13404 | -6/Data Miner | Received God Mode back door access code from Data Miner 13410 | -6/Data Miner | Identified exit to Proximity Caves 13410 | -6/Data Miner | Entered Proximity Caves 13537 | -5/Proximity Caves | Learned Factory stockpile data 13552 | -5/Proximity Caves | Entered Factory 13552 | -5/Factory | Evolved 2 slots: Utility x2 13553 | -5/Factory | Identified exit to Upper Caves 13554 | -5/Factory | Identified exit to Factory 13556 | -5/Factory | Loaded intel: 4 garrison access locations 13634 | -5/Factory | System corruption reached 10% 13644 | -5/Factory | Loaded intel: 8 recycling unit locations 13787 | -5/Factory | Sucked down chute 13787 | -5/Factory | Entered Waste 13790 | -5/Waste | Spotted C-40 Crusher 13790 | -5/Waste | Spotted C-40 Crusher 13792 | -5/Waste | Spotted C-40 Crusher 13794 | -5/Waste | Spotted C-40 Crusher 13796 | -5/Waste | Spotted C-40 Crusher 13799 | -5/Waste | Spotted C-40 Crusher 13799 | -5/Waste | Discovered new exit (range 11) 13801 | -5/Waste | Identified exit to Factory 13801 | -5/Waste | Entered Factory 13888 | -5/Factory | Identified exit to Extension 13890 | -5/Factory | Noticed a derelict Sapper rigging charges 13940 | -5/Factory | Loaded intel: 8 recycling unit locations 13980 | -5/Factory | Discovered exit to Factory (range 23) 14101 | -5/Factory | First assault squad dispatched 14165 | -5/Factory | Garrison activated, responded to threat 14208 | -5/Factory | Lost 4 parts (1n1u2w) 14217 | -5/Factory | Entered Extension 14271 | -5/Extension | Rescued a captive Derelict 14290 | -5/Extension | Rescued a captive Derelict 14291 | -5/Extension | Rescued a captive Derelict 14395 | -5/Extension | Rescued a captive Derelict 14396 | -5/Extension | Rescued a captive Derelict 14430 | -5/Extension | Rescued a captive Derelict 14430 | -5/Extension | Rescued a captive Derelict 14434 | -5/Extension | Rescued a captive Derelict 14438 | -5/Extension | Rescued a captive Derelict 14623 | -5/Extension | Build established: Hacker-Ninja 14624 | -5/Extension | Spotted B-75 Beast 14667 | -5/Extension | Spotted B-75 Beast 14684 | -5/Extension | Allies destroyed B-75 Beast 14705 | -5/Extension | Rescued a captive Derelict 14711 | -5/Extension | Rescued a captive Derelict 14712 | -5/Extension | Rescued a captive Derelict 14719 | -5/Extension | Rescued a captive Derelict 14727 | -5/Extension | Rescued A7 14730 | -5/Extension | Lost 3 parts (1p2n) 14730 | -5/Extension | Lost 8 allies 14735 | -5/Extension | Core integrity fell below 50% 14793 | -5/Extension | System corruption reached 30% 14814 | -5/Extension | Rescued a captive Derelict 14815 | -5/Extension | Loaded intel: 1 recycling unit location 14899 | -5/Extension | Discovered exit to Factory (range 10) 14899 | -5/Extension | Discovered new exit (range 6) 14900 | -5/Extension | Identified exit to Cetus 14954 | -5/Extension | Entered Cetus 14954 | -5/Cetus | Accompanied by 6 allies (A7) 14959 | -5/Cetus | Acquired a Cetus Manufacturing Module code from A7 14975 | -5/Cetus | Spotted Cetus Guard 14980 | -5/Cetus | Spotted Cetus Guard 14980 | -5/Cetus | Spotted Cetus Guard 14982 | -5/Cetus | Spotted Cetus Guard 14992 | -5/Cetus | Allies destroyed Cetus Guard 15003 | -5/Cetus | Allies destroyed Cetus Guard 15011 | -5/Cetus | Allies destroyed Cetus Guard 15022 | -5/Cetus | Allies destroyed Cetus Guard 15124 | -5/Cetus | Started Cetus Manufacturing Module 15137 | -5/Cetus | Discovered new exit (range 16) 15149 | -5/Cetus | Manufactured an Enhanced Grunt 15174 | -5/Cetus | Manufactured an Enhanced Grunt 15199 | -5/Cetus | Manufactured an Enhanced Grunt 15224 | -5/Cetus | Manufactured an Enhanced Grunt 15249 | -5/Cetus | Manufactured an Enhanced Grunt 15289 | -5/Cetus | Spotted Cetus Guard 15290 | -5/Cetus | Spotted Cetus Guard 15294 | -5/Cetus | Spotted Cetus Guard 15294 | -5/Cetus | Spotted Cetus Guard 15300 | -5/Cetus | Allies destroyed Cetus Guard 15311 | -5/Cetus | Allies destroyed Cetus Guard 15319 | -5/Cetus | Discovered exit to Factory (range 15) 15325 | -5/Cetus | Met Revision 17 15492 | -5/Cetus | Build established: Commander-Mutant 15547 | -5/Cetus | Identified exit to Archives 15593 | -5/Cetus | Murdered A7 15601 | -5/Cetus | Found Prototype Protection 15601 | -5/Cetus | Identified Med. Regenerative Plating 15606 | -5/Cetus | Extracted ID and sensor layout for unrecognized location from A7's data core 15614 | -5/Cetus | Entered Archives 15614 | -5/Archives | Accompanied by 8 allies 15689 | -5/Archives | Discovered new exit (range 15) 15716 | -5/Archives | Discovered exit to Factory (range 16) 15803 | -5/Archives | Identified exit to Hub_04(d) 15889 | -5/Archives | Build established: Scavenger-Mutant 16182 | -5/Archives | Entered Hub_04(d) 16182 | -5/Hub_04(d) | Accompanied by 6 allies 16208 | -5/Hub_04(d) | Discovered exit to Factory (range 15) 16352 | -5/Hub_04(d) | Network Hub disabled 16365 | -5/Hub_04(d) | Spotted Lightning 16367 | -5/Hub_04(d) | Spotted Lightning 16389 | -5/Hub_04(d) | Entered Factory 16389 | -4/Factory | Evolved 2 slots: Utility x1, Weapon x1 16390 | -4/Factory | Identified exit to Research 16413 | -4/Factory | Lost 4 allies 16650 | -4/Factory | System corruption reached 10% 16678 | -4/Factory | Loaded intel: 8 recycling unit locations 16700 | -4/Factory | Incoming investigation squad redirected 16732 | -4/Factory | Lost 3 parts (1n1u1w) 16799 | -4/Factory | Identified exit to Upper Caves 17045 | -4/Factory | Central database locked down 17176 | -4/Factory | Spotted B-86 Titan 17204 | -4/Factory | Spotted B-86 Titan 17236 | -4/Factory | Entered Upper Caves 17237 | -4/Upper Caves | Identified exit to Upper Caves 17259 | -4/Upper Caves | Lost 4 parts (2p1n1u) 17289 | -4/Upper Caves | Learned Research emergency access door positions 17298 | -4/Upper Caves | Encountered a Warlord checkpoint 17305 | -4/Upper Caves | Entered another Upper Caves area 17306 | -4/Upper Caves | Discovered new exit (range 136) 17414 | -4/Upper Caves | Identified exit to Zhirov 17415 | -4/Upper Caves | Entered Zhirov 17417 | -4/Zhirov | Discovered new exit (range 3) 17423 | -4/Zhirov | Met Zhirov 17430 | -4/Zhirov | Learned location of Testing (-2) 17430 | -4/Zhirov | Learned location of Command (-1) 17432 | -4/Zhirov | Zhirov requested help retrieving the SGEMP Prototype 17438 | -4/Zhirov | Found Alien Artifact 17438 | -4/Zhirov | Identified Integrated Reactor 17438 | -4/Zhirov | Installed Integrated Reactor, increased core energy generation (+10) 17445 | -4/Zhirov | Found Alien Artifact 17488 | -4/Zhirov | Identified exit to Proximity Caves 17488 | -4/Zhirov | Entered Proximity Caves 17496 | -3/Proximity Caves | Found DCF Scrap (14 items) 17536 | -3/Proximity Caves | Build established: Wizard-Mutant 17578 | -3/Proximity Caves | Spotted B-86 Titan 17582 | -3/Proximity Caves | Entered Research 17582 | -3/Research | Evolved 2 slots: Power x1, Weapon x1 17632 | -3/Research | Targeted by mysterious "MATRIX" hacker. 17632 | -3/Research | Identified exit to Armory 17632 | -3/Research | Identified exit to Quarantine 17662 | -3/Research | Loaded intel: 4 recycling unit locations 17704 | -3/Research | Found Fusion Bomb Launcher 17738 | -3/Research | Discovered new exit (range 9) 17741 | -3/Research | Identified exit to Research 17749 | -3/Research | Crushed by falling debris 17772 | -3/Research | Lost 4 parts (1p1n1u1w) 17779 | -3/Research | Entered Quarantine 17820 | -3/Quarantine | Identified Transdimensional Reconstructor 17820 | -3/Quarantine | Warped through subspace 17855 | -3/Quarantine | Lost 4 parts (2n2u) 17857 | -3/Quarantine | Cryocooling Duct disabled 17872 | -3/Quarantine | Ambient heat levels rising (+20) 17872 | -3/Quarantine | Non-combat units ordered to evacuate 17881 | -3/Quarantine | Incoming investigation squad redirected 17905 | -3/Quarantine | Cryocooling Duct disabled 17920 | -3/Quarantine | Ambient heat levels rising (+20) 17920 | -3/Quarantine | Combat units ordered to evacuate 17952 | -3/Quarantine | Spotted Fortress 17980 | -3/Quarantine | Discovered new exit (range 5) 17980 | -3/Quarantine | Discovered new exit (range 6) 17981 | -3/Quarantine | Identified exit to Section 7 17983 | -3/Quarantine | Identified exit to Protoforge 17985 | -3/Quarantine | Entered Protoforge 17990 | -3/Protoforge | Superfortress began startup sequence 17996 | -3/Protoforge | Spotted B-86 Titan 17999 | -3/Protoforge | Core integrity fell below 50% 18008 | -3/Protoforge | Core integrity fell below 20% 18013 | -3/Protoforge | Spotted Hotshot 18019 | -3/Protoforge | Spotted Hotshot 18031 | -3/Protoforge | Spotted Hotshot 18032 | -3/Protoforge | Spotted Hotshot 18033 | -3/Protoforge | Destroyed by Hotshot with Improved Heavy Laser Last Messages --------------- 17997_ Imp. Linear Gravjet destroyed. 17998_ Imp. Hacking Suite destroyed. 17998_ Knocked back. 18000_ Imp. Hacking Suite destroyed. 18002_ Adv. Signal Interpreter destroyed. 18002_ Knocked back. 18006_ System corrupted: Matter fused (-9). 18007_ Knocked back. 18007_ Penetrated by Slug. 18007_ Enh. Force Lance destroyed. 18007_ Slug penetrates Wall. 18011_ Slug penetrates U-05 Engineer. 18011_ U-05 Engineer destroyed. 18011_ Slug penetrates U-05 Engineer. 18012_ Impulse Thruster destroyed. 18014_ K-01 Serf cleans the Yield Oscillator. 18027_ O-24 Administrator: "IFF HANDSHAKE FAILED. SECURING TERMINAL." 18028_ W-44 Eye sends out distress signal. 18033_ Adv. System Shield destroyed. 18033_ Critical hit (Burn: +37). Map ----- +----------------------------------------------------+ | ?????????????????????????????????????????????????? | | ?????????????????????????????????????????????????? | | ?????????????????????????????????????????????????? | | ?????????????????????????????????????????????????? | | ?????????????????????????????????????????????????? | | ?????????????????????????????????????????????????? | | ?????????????????????????????????????????????????? | | ?????????????????????????????????????????????????? | | ?????????????????????????????????????????????????? | | ?????????????????????????????????????????????????? | | ????????????????? ?????????????????????????????? | | ????????????????# #????????????????????????????? | | ????????????????# #????????????????????????????? | | ????????????????# #????????????????????????????? | | ????????????????# +????????????????????????????? | | ????????????????# #????????????????????????????? | | ????????????????? #????????????????????????????? | | ?????????????????# #????????????????????????????? | | ?????????????????# ###########??????????????????? | | ?????????????????# k """"" +??????????????????? | | ?????????????????# ""T"" #??????????????????? | | #####+############ #??????????????????? | | +??????????????????? | | w #??????????????????? | | "" """" #??????????????????? | | "" """" s ss @ #??????????????????? | | "" """" ####+############g #??????????????????? | | "" """" # #??????g #??????????????????? | | # """" #??????? #??????????????????? | | + """" #??????? ?????????????????? | | # """" #???????? ????????????????? | | # """" #???????? ??????????????? | | # """" #????????? ?????????????? | | ########## """" #?????????#####+##????????????? | | ?????????# #?????????????????????????????? | | ?????????######?####?????????????????????????????? | | ?????????????????????????????????????????????????? | | ?????????????????????????????????????????????????? | | ?????????????????????????????????????????????????? | | ?????????????????????????????????????????????????? | | ?????????????????????????????????????????????????? | | ?????????????????????????????????????????????????? | | ?????????????????????????????????????????????????? | | ?????????????????????????????????????????????????? | | ?????????????????????????????????????????????????? | | ?????????????????????????????????????????????????? | | | | | | | | | +----------------------------------------------------+ Best States ------------- Heat Dissipation 62 Energy Generation 49 Energy Capacity 950 Matter Stores 300 Matter Capacity 300 Sight Range 22 Robot Scan Range 16 Terrain Scan Density 10 ECM Strength 1 Armor Coverage 675 Propulsion Shielding 66 Melee Speed Boost 20 Evasion (%) 75 Recoil Reduction 4 Offensive Hacking 48 Defensive Hacking 14 Authchip Count 1 Item Schematics ----------------- Imp. Utility Shielding | -8/Materials | Hacked Hacking Suite | -8/Materials | Scanalyzed Imp. VTOL Module | -8/Materials | Scanalyzed Imp. Propulsion Shielding | -8/Recycling | Hacked Imp. Hacking Suite | -6/Factory | Hacked Combat Drone Bay | -6/Data Miner | Free Lgt. Regenerative Plating | -6/Data Miner | Free Enh. Flexi-carbon Leg | -6/Data Miner | Free Adv. EM Disruption Field | -6/Data Miner | Free Tesla Bomb Launcher | -6/Data Miner | Free Field Propulsion Array | -6/Data Miner | Free Assault Drone Bay | -4/Zhirov | Free Exp. Heat Sink | -4/Zhirov | Free Exp. Optical Array | -4/Zhirov | Free Imp. Arc Thrower | -4/Zhirov | Free Robot Schematics ------------------ B-60 Warrior | -6/Data Miner | Free I-47 Archangel | -6/Data Miner | Free G-50 Soldier | -6/Data Miner | Free Y-64 Sentinel | -6/Data Miner | Free Fabricated ------------ Nothing Repaired ---------- Micro-nuke Launcher | 62% | -6/Factory | Broken Studied --------- Wheel | -9/Materials | Hacked Lgt. Deuterium Engine | -6/Factory | Hacked Nuclear Pulse Array | -4/Factory | Hacked Lgt. Antimatter Reactor | -4/Factory | Hacked Alien Tech Used ----------------- Integrated Reactor Transdimensional Reconstructor Achievements -------------- None Challenges ------------ None Game ------ Seed DataSkeletonJetlance Manual? 0 Play Time 03:53:19 Cumulative 697.9 hours Start 2026.04.07 @ 13:24:31 End 2026.04.07 @ 17:26:41 Sessions 1 Manual Loads 0 Difficulty Rogue Special Mode None Game No. 390 Rogue 390 Adventurer 0 Explorer 0 Win Type - Total 30 Types 15/1/6/2/1/1/1/2/1/0 Lore% 93 Gallery% 87 Achievement% 79 Wizard Run 0 Options --------- Layout 0 ASCII 0 Keyboard 0 Movement Mouse Keybinds 0 Fullscreen 2 Font 24/Smallcaps Map View 76x50 Zoom Use 0% Tactical HUD 1 Map Filters NONE Filters NONE Steam 1 RUN: 481d9232-62a6-4605-a239-5228816c2959